bitfinex/quotes_BTCUSD_20230118
["timestamp","ask_amount","ask_price","bid_price","bid_amount"]
[1674059644798,0.966474,20694.0,20691.0,0.00627949]
[1674059645049,0.15,20693.0,20691.0,0.00627949]
[1674059645303,0.483278,20692.0,20691.0,0.00627949]
[1674059646091,0.633275,20693.0,20691.0,0.00627949]
[1674059646351,0.15,20693.0,20692.0,0.47720169]
[1674059646610,0.15,20695.0,20692.0,0.82554981]
[1674059646882,0.15,20695.0,20693.0,0.77720169]
[1674059647244,0.15,20696.0,20694.0,0.47720169]
[1674059647536,0.1501,20700.0,20695.0,1.18704686]
[1674059647817,0.0001,20700.0,20696.0,0.79296269]
[1674059648087,0.483193,20700.0,20697.0,1.18306398]
[1674059648346,0.483193,20700.0,20697.0,0.77720169]
[1674059648618,0.15,20699.0,20697.0,0.77720169]
[1674059648875,0.483123,20699.0,20697.0,0.77720169]
[1674059649141,0.483123,20699.0,20694.0,0.3]
[1674059649398,0.724683,20699.0,20691.0,0.00627949]
[1674059649651,0.15,20697.0,20692.0,0.47720169]
[1674059649921,0.15,20697.0,20693.0,0.47720169]
[1674059650185,0.483206,20700.0,20694.0,0.52492186]
[1674059650435,0.483206,20700.0,20695.0,0.80742969]
[1674059650436,0.0001,20700.0,20695.0,0.80742969]
[1674059650694,0.0001,20700.0,20696.0,0.80181069]
[1674059650999,0.0001,20700.0,20697.0,0.89222476]
[1674059651240,0.0001,20700.0,20698.0,1.09622869]
[1674059651478,0.0001,20700.0,20699.0,0.80228369]
[1674059651745,0.0001,20700.0,20699.0,1.10228369]
[1674059653291,0.0001,20700.0,20699.0,1.25228369]
[1674059653566,0.0001,20700.0,20699.0,1.49951017]
[1674059654119,0.0001,20700.0,20699.0,1.34951017]
[1674059654372,0.0001,20700.0,20699.0,0.80228369]
[1674059654643,0.04726,20700.0,20699.0,0.325082]
[1674059655152,0.04726,20700.0,20694.0,0.04772017]
[1674059655469,0.04726,20700.0,20695.0,0.47720169]
[1674059655731,0.530368,20700.0,20696.0,0.52969388]
[1674059655990,0.680368,20700.0,20697.0,0.47720169]
[1674059656323,0.0001,20700.0,20698.0,0.47720169]
[1674059656568,0.0001,20700.0,20699.0,0.47720169]
[1674059656809,0.0001,20700.0,20699.0,0.82492186]
[1674059657068,0.0001,20700.0,20696.0,0.05249219]
[1674059657311,0.483191,20700.0,20697.0,0.47720169]
[1674059657612,0.48308826,20700.0,20697.0,0.47720169]
[1674059657832,0.48308826,20700.0,20694.0,0.04772017]
[1674059658075,0.96679984,20699.0,20694.0,0.52492186]
[1674059658319,0.9663,20698.0,20694.0,0.52492186]
[1674059658595,0.966295,20698.0,20695.0,0.05249219]
[1674059658835,0.483139,20698.0,20695.0,0.05249219]
[1674059659096,1.97452505,20701.0,20697.0,0.47720169]
[1674059659097,0.00599105,20701.0,20697.0,0.47720169]
[1674059659340,0.00599105,20701.0,20698.0,0.84881286]
[1674059659341,0.96669843,20700.0,20698.0,0.84881286]
[1674059659601,0.96669843,20700.0,20699.0,0.77720169]
[1674059659844,0.96283917,20700.0,20699.0,0.77720169]
[1674059660090,0.48908105,20701.0,20699.0,0.77720169]
[1674059660091,0.00599105,20701.0,20699.0,0.77720169]
[1674059660338,0.48906805,20701.0,20699.0,0.3]
[1674059660616,0.15,20700.0,20698.0,0.04772017]
[1674059660853,0.4826201,20699.0,20695.0,0.3]
[1674059661101,0.483106,20700.0,20696.0,0.47720169]
[1674059661349,0.483106,20700.0,20697.0,0.47720169]
[1674059661588,0.48908005,20701.0,20698.0,0.3]
[1674059662090,0.48888487,20701.0,20698.0,0.3]
[1674059662331,0.97195287,20701.0,20698.0,0.3]
[1674059662590,0.24158,20699.0,20691.0,0.00627949]
[1674059662832,0.1398,20695.0,20691.0,0.00627949]
[1674059663097,1.691328,20694.0,20691.0,0.00627949]
[1674059663342,0.1397,20693.0,20691.0,0.00627949]
[1674059663585,0.966556,20692.0,20691.0,0.00627949]
[1674059664327,1.116556,20692.0,20691.0,0.00627949]
[1674059665837,1.4603788,20692.0,20691.0,0.00627949]
[1674059667140,1.116556,20692.0,20691.0,0.00627949]
[1674059667432,1.076556,20692.0,20691.0,0.00627949]
[1674059667707,0.926556,20692.0,20691.0,0.00627949]
[1674059668419,1.076556,20692.0,20691.0,0.00627949]
[1674059668675,1.318206,20692.0,20691.0,0.00627949]
[1674059668946,2.18497808,20692.0,20691.0,0.00627949]
[1674059669189,2.18497808,20692.0,20689.0,0.01648043]
[1674059669190,0.15,20691.0,20689.0,0.01648043]
[1674059669429,1.589775,20690.0,20689.0,0.01648043]
[1674059669932,1.70444811,20690.0,20689.0,0.01648043]
[1674059670180,1.96595155,20690.0,20688.0,0.01703352]
[1674059670486,1.69893,20689.0,20688.0,3.352e-05]
[1674059670727,1.69893,20689.0,20682.0,0.01648043]
[1674059670973,0.24174,20684.0,20682.0,0.01648043]
[1674059671215,0.483457,20685.0,20682.0,0.01648043]
[1674059671478,0.483471,20684.0,20682.0,0.01648043]
[1674059671712,0.24175,20683.0,20682.0,0.01648043]
[1674059671954,0.23675,20683.0,20682.0,0.01648043]
[1674059672954,0.15,20683.0,20682.0,0.01648043]
[1674059673433,1.4572,20684.0,20682.0,0.01648043]
[1674059673672,1.790682,20684.0,20682.0,0.01648043]
[1674059673914,1.3072,20684.0,20682.0,0.01648043]
[1674059674421,2.3505747,20684.0,20682.0,0.01648043]
[1674059674917,2.3505747,20684.0,20673.0,1.08324176]
[1674059675171,0.1398,20682.0,20674.0,0.47720169]
[1674059675427,0.773316,20682.0,20675.0,0.47720169]
[1674059675672,0.15,20682.0,20676.0,0.52480186]
[1674059675927,0.633499,20683.0,20677.0,0.47720169]
[1674059675928,0.483499,20683.0,20677.0,0.47720169]
[1674059676174,1.930371,20684.0,20678.0,0.47720169]
[1674059676429,1.3072,20684.0,20679.0,0.52492186]
[1674059676722,1.3072,20684.0,20680.0,0.77720169]
[1674059676970,1.3072,20684.0,20681.0,0.47720169]
[1674059677261,1.790669,20684.0,20681.0,0.47720169]
[1674059677505,1.790669,20684.0,20673.0,1.75308445]
[1674059677506,0.4015857,20683.0,20673.0,0.75308445]
[1674059677796,0.967086,20681.0,20675.0,0.47720169]
[1674059678005,0.967086,20681.0,20676.0,0.47720169]
[1674059678237,0.967086,20681.0,20676.0,0.52492186]
[1674059678482,0.967086,20681.0,20677.0,0.47720169]
[1674059678729,1.790669,20684.0,20678.0,0.80804469]
[1674059678968,1.790669,20684.0,20679.0,0.81931469]
[1674059679212,1.790669,20684.0,20680.0,0.80204269]
[1674059679451,0.966896,20685.0,20681.0,0.47720169]
[1674059679698,0.483468,20684.0,20682.0,0.3]
[1674059679950,0.483445,20685.0,20682.0,0.77720169]
[1674059680191,0.483445,20685.0,20682.0,0.85492186]
[1674059680444,0.483442,20685.0,20682.0,0.85492186]
[1674059680733,0.15,20684.0,20683.0,0.47720169]
[1674059680971,0.63343,20686.0,20683.0,0.3]
[1674059681236,0.15,20684.0,20682.0,0.3]
[1674059681486,0.633479,20684.0,20682.0,0.3]
[1674059681725,0.772579,20684.0,20676.0,0.04772017]
[1674059681976,0.1391,20679.0,20672.0,0.01130605]
[1674059682254,0.483631,20677.0,20673.0,0.47720169]
[1674059682490,0.15,20676.0,20674.0,0.47720169]
[1674059682737,0.483582,20679.0,20675.0,0.52492186]
[1674059682982,0.48356,20680.0,20675.0,0.52492186]
[1674059682983,0.483608,20678.0,20675.0,0.52492186]
[1674059683220,0.483608,20678.0,20675.0,0.47720169]
[1674059683221,0.15,20677.0,20675.0,0.47720169]
[1674059683473,1.117284,20677.0,20672.0,0.01130605]
[1674059683719,1.359104,20677.0,20672.0,0.01130605]
[1674059683985,0.483633,20677.0,20673.0,0.47720169]
[1674059684251,0.483633,20677.0,20673.0,0.46240169]
[1674059684498,0.483608,20678.0,20674.0,0.52457246]
[1674059684733,0.483608,20678.0,20675.0,0.78981669]
[1674059684981,0.483608,20678.0,20676.0,0.77720169]
[1674059685232,0.483602,20679.0,20676.0,0.77720169]
[1674059685492,0.967186,20679.0,20676.0,0.77720169]
[1674059685737,0.48359,20679.0,20676.0,0.3]
[1674059685985,0.967172,20679.0,20674.0,0.04737077]
[1674059686232,0.967172,20679.0,20675.0,0.47720169]
[1674059686737,1.208972,20679.0,20672.0,0.01130605]
[1674059686982,0.483582,20679.0,20675.0,0.47720169]
[1674059687224,1.32,20681.0,20676.0,0.52492186]
[1674059687471,0.483581,20680.0,20676.0,0.52492186]
[1674059687731,0.967139,20680.0,20676.0,0.47720169]
[1674059687979,0.967139,20680.0,20672.0,0.01130605]
[1674059688224,0.15,20678.0,20673.0,0.47720169]
[1674059688472,0.15,20678.0,20673.0,0.05057033]
[1674059688720,0.96728,20677.0,20673.0,0.05057033]
[1674059689449,0.96728,20677.0,20672.0,0.48850774]
[1674059689929,0.96728,20677.0,20672.0,0.01130605]
[1674059690184,0.24183,20676.0,20672.0,0.01130605]
[1674059690464,1.74014,20675.0,20672.0,0.01130605]
[1674059690966,0.24188,20673.0,20672.0,0.01130605]
[1674059691210,0.24188,20673.0,20672.0,0.00912707]
[1674059691480,1.87987505,20673.0,20672.0,0.00912707]
[1674059691731,1.832846,20673.0,20672.0,0.00912707]
[1674059691984,1.832846,20673.0,20671.0,0.01719553]
[1674059691985,0.04721293,20672.0,20671.0,0.01719553]
[1674059692237,0.04721293,20672.0,20671.0,5.53e-06]
[1674059692480,0.53095893,20672.0,20671.0,5.53e-06]
[1674059692968,0.77284893,20672.0,20671.0,5.53e-06]
[1674059693214,0.53095893,20672.0,20671.0,5.53e-06]
[1674059693719,1.349114,20673.0,20672.0,0.22092765]
[1674059693978,0.1398,20670.0,20667.0,0.01768662]
[1674059694257,0.3818,20668.0,20667.0,8.662e-05]
[1674059694508,0.3818,20668.0,20663.0,0.01803041]
[1674059694509,0.38109,20668.0,20663.0,0.01803041]
[1674059694761,0.1398,20666.0,20663.0,0.01803041]
[1674059695047,1.107572,20666.0,20663.0,0.01803041]
[1674059695360,0.967772,20666.0,20663.0,0.01803041]
[1674059695543,0.483854,20668.0,20665.0,0.06049776]
[1674059695804,0.967763,20667.0,20665.0,0.01781776]
[1674059696056,1.209703,20667.0,20665.0,0.01781776]
[1674059696316,0.967763,20667.0,20665.0,0.01781776]
[1674059696557,0.15,20666.0,20665.0,0.01781776]
[1674059697037,0.2898,20666.0,20665.0,0.01781776]
[1674059697280,0.99008724,20666.0,20665.0,0.01781776]
[1674059697524,0.99008724,20666.0,20665.0,1.776e-05]
[1674059697778,0.06495224,20665.0,20664.0,3.49e-06]
[1674059698022,1.27477024,20665.0,20664.0,3.49e-06]
[1674059698333,1.27477024,20665.0,20654.0,0.16967629]
[1674059698334,1.27477024,20665.0,20654.0,0.01967629]
[1674059698575,0.1388,20661.0,20654.0,0.0560284]
[1674059698831,0.484052,20659.0,20658.0,0.01803041]
[1674059699349,0.968091,20660.0,20658.0,0.01803041]
[1674059700131,0.13613,20663.0,20659.0,0.47720169]
[1674059700132,0.48397,20663.0,20659.0,0.47720169]
[1674059700451,0.48399,20662.0,20660.0,0.621846]
[1674059700648,0.48399,20662.0,20658.0,0.01803041]
[1674059701395,0.48397,20663.0,20659.0,0.47720169]
[1674059701719,0.483995,20662.0,20658.0,0.4952321]
[1674059701920,0.483995,20662.0,20659.0,0.3]
[1674059702176,0.483995,20662.0,20658.0,0.01803041]
[1674059702932,0.53102405,20662.0,20658.0,0.01803041]
[1674059703199,0.15,20661.0,20658.0,0.01803041]
[1674059703448,0.968054,20660.0,20658.0,0.01803041]
[1674059703985,0.15,20659.0,20658.0,0.01803041]
[1674059704234,0.63405,20659.0,20658.0,0.01803041]
[1674059704525,0.15,20659.0,20658.0,0.01803041]
[1674059704736,0.968054,20660.0,20658.0,0.01803041]
[1674059704987,0.15,20659.0,20658.0,0.01803041]
[1674059705752,0.63405,20659.0,20658.0,0.01803041]
[1674059706525,0.63405,20659.0,20658.0,0.06071041]
[1674059706776,0.634016,20661.0,20658.0,0.06071041]
[1674059706777,0.484016,20661.0,20658.0,0.06071041]
[1674059707031,0.484016,20661.0,20659.0,0.00607104]
[1674059707299,0.484016,20661.0,20658.0,0.01803041]
[1674059707821,0.968019,20661.0,20658.0,0.01803041]
[1674059708154,0.968019,20661.0,20658.0,0.4952321]
[1674059708357,0.968019,20661.0,20658.0,0.01803041]
[1674059709112,0.15,20660.0,20658.0,0.01803041]
[1674059709387,0.9681,20659.0,20658.0,0.01803041]
[1674059709920,0.615146,20662.0,20658.0,0.01803041]
[1674059709921,0.483996,20662.0,20658.0,0.5379121]
[1674059710187,0.483996,20662.0,20659.0,0.3]
[1674059710468,0.483996,20662.0,20659.0,0.77720169]
[1674059710760,0.483996,20662.0,20660.0,0.07952321]
[1674059711031,0.483996,20662.0,20658.0,0.01803041]
[1674059711285,0.725986,20662.0,20658.0,0.01803041]
[1674059711551,1.209966,20662.0,20658.0,0.01803041]
[1674059712089,0.24203,20659.0,20658.0,0.01803041]
[1674059712392,1.873183,20659.0,20658.0,0.01803041]
[1674059713200,1.74195,20659.0,20658.0,0.01803041]
[1674059713483,1.60215,20659.0,20658.0,0.01803041]
[1674059714273,1.84419,20659.0,20658.0,0.01803041]
[1674059715618,1.84418,20659.0,20658.0,0.01803041]
[1674059715951,1.60215,20659.0,20658.0,0.01803041]
[1674059716164,2.0157042,20659.0,20658.0,0.01803041]
[1674059716965,2.0157042,20659.0,20655.0,0.01803041]
[1674059716966,0.00272858,20657.0,20655.0,0.01503082]
[1674059717251,1.45236,20656.0,20655.0,0.01503082]
[1674059718013,1.45242,20656.0,20655.0,0.01503082]
[1674059718529,0.9683,20656.0,20655.0,0.01503082]
[1674059719065,0.48418,20656.0,20655.0,0.01503082]
[1674059719326,6e-05,20656.0,20655.0,0.05771082]
[1674059719590,6e-05,20656.0,20655.0,0.06610898]
[1674059720137,6e-05,20656.0,20655.0,0.54331067]
[1674059720359,6e-05,20656.0,20655.0,0.87595667]
[1674059720617,6e-05,20656.0,20655.0,1.17595667]
[1674059721912,0.483953,20664.0,20655.0,2.77595667]
[1674059722177,0.48890374,20665.0,20659.0,0.47720169]
[1674059722439,0.00497874,20665.0,20660.0,0.79494669]
[1674059722711,0.00497874,20665.0,20661.0,1.11519269]
[1674059722995,0.00497874,20665.0,20662.0,0.79719369]
[1674059723260,0.09662721,20666.0,20664.0,0.47720169]
[1674059723531,0.48875974,20671.0,20665.0,1.11384169]
[1674059723838,0.00497874,20671.0,20669.0,0.47720169]
[1674059724114,0.00497874,20671.0,20670.0,1.15083386]
[1674059724912,7.874e-05,20671.0,20670.0,1.14595171]
[1674059725191,0.15,20679.0,20670.0,1.14595171]
[1674059725678,0.483615,20678.0,20672.0,0.47720169]
[1674059725944,0.483615,20678.0,20673.0,0.92531838]
[1674059726218,0.622415,20678.0,20669.0,0.15]
[1674059726472,0.38163,20676.0,20666.0,0.1733786]
[1674059726731,0.967444,20673.0,20667.0,0.47720169]
[1674059727000,0.53071705,20675.0,20669.0,0.47720169]
[1674059727271,0.483718,20674.0,20670.0,0.82226869]
[1674059727576,0.483718,20674.0,20671.0,0.55942856]
[1674059727789,0.48361,20678.0,20673.0,0.47720169]
[1674059728089,0.483604,20679.0,20674.0,1.09700869]
[1674059728353,0.483613,20678.0,20675.0,0.79975369]
[1674059728615,0.483613,20678.0,20674.0,0.3]
[1674059728909,0.483613,20678.0,20674.0,0.77720169]
[1674059729166,0.15,20677.0,20675.0,0.55492186]
[1674059729427,0.633575,20680.0,20676.0,0.77720169]
[1674059729687,0.68056405,20681.0,20677.0,0.80555469]
[1674059729688,0.483535,20681.0,20677.0,0.80555469]
[1674059729955,0.483535,20681.0,20678.0,0.80105169]
[1674059730225,0.483535,20681.0,20679.0,1.18398386]
[1674059730493,0.483499,20683.0,20680.0,0.79951569]
[1674059730764,0.483476,20684.0,20681.0,1.10116369]
[1674059731025,0.483432,20686.0,20682.0,0.80622269]
[1674059731288,0.48856091,20688.0,20683.0,1.21461396]
[1674059731787,0.48856091,20688.0,20686.0,0.47720169]
[1674059731788,0.00517991,20688.0,20686.0,0.47720169]
[1674059732079,0.00517991,20688.0,20687.0,1.10821269]
[1674059732313,0.00517991,20688.0,20684.0,0.3]
[1674059732568,0.48856091,20688.0,20684.0,0.3]
[1674059732844,0.15,20687.0,20679.0,0.08010517]
[1674059733092,0.15,20687.0,20680.0,0.47720169]
[1674059733093,0.966902,20685.0,20680.0,0.47720169]
[1674059733359,0.966902,20685.0,20681.0,0.47720169]
[1674059733633,0.483451,20685.0,20682.0,0.47720169]
[1674059733901,0.483443,20685.0,20683.0,0.83519386]
[1674059734197,0.00553086,20686.0,20684.0,0.80097669]
[1674059734465,0.48895486,20686.0,20684.0,0.47720169]
[1674059734725,0.00553086,20686.0,20684.0,0.47720169]
[1674059734982,0.48895486,20686.0,20685.0,0.3]
[1674059735246,0.00553086,20686.0,20685.0,0.77720169]
[1674059735518,0.00553086,20686.0,20685.0,1.10615369]
[1674059736348,3.086e-05,20686.0,20685.0,1.10615369]
[1674059736610,0.00517991,20688.0,20686.0,0.26061537]
[1674059736956,0.00517991,20688.0,20687.0,1.12068169]
[1674059737989,0.05233991,20688.0,20680.0,1.8617]
[1674059738235,0.483408,20687.0,20682.0,0.47720169]
[1674059738505,0.53572791,20688.0,20683.0,0.47720169]
[1674059738763,0.00517991,20688.0,20685.0,0.47720169]
[1674059739012,0.00517991,20688.0,20686.0,0.80276569]
[1674059739259,0.00517991,20688.0,20687.0,0.80476669]
[1674059739260,7.991e-05,20688.0,20687.0,0.80476669]
[1674059739557,7.991e-05,20688.0,20687.0,0.88524336]
[1674059739768,7.991e-05,20688.0,20687.0,1.18524336]
[1674059740033,7.991e-05,20688.0,20687.0,2.18524336]
[1674059740840,9.91e-06,20688.0,20687.0,2.51680044]
[1674059741035,9.91e-06,20688.0,20687.0,2.56095601]
[1674059741288,0.00562062,20692.0,20688.0,5.009e-05]
[1674059741531,0.00562062,20692.0,20690.0,0.47720169]
[1674059741785,0.00562062,20692.0,20691.0,1.08974769]
[1674059742043,0.00562062,20692.0,20691.0,0.78974769]
[1674059742293,0.12017,20698.0,20691.0,0.78974769]
[1674059742294,0.0001,20700.0,20692.0,0.22897477]
[1674059742548,0.0001,20700.0,20696.0,0.47720169]
[1674059742794,0.0001,20700.0,20697.0,1.09520869]
[1674059743050,0.0001,20700.0,20698.0,0.332333]
[1674059743307,0.5315111,20700.0,20688.0,1.1008107]
[1674059743564,0.1398,20697.0,20690.0,0.47720169]
[1674059743817,0.96642,20695.0,20690.0,0.47720169]
[1674059744066,1.10622,20695.0,20688.0,5.009e-05]
[1674059744323,1.10622,20695.0,20689.0,0.47720169]
[1674059744577,0.15,20694.0,20689.0,0.47720169]
[1674059744825,0.15,20694.0,20688.0,5.009e-05]
[1674059744826,1.449798,20693.0,20688.0,5.009e-05]
[1674059745080,0.1392,20691.0,20688.0,5.009e-05]
[1674059745333,1.449975,20690.0,20688.0,5.009e-05]
[1674059745583,0.15,20689.0,20688.0,5.009e-05]
[1674059747118,0.2888,20689.0,20688.0,5.009e-05]
[1674059750172,0.15,20689.0,20688.0,5.009e-05]
[1674059750442,0.15,20689.0,20688.0,0.47725178]
[1674059750695,0.96665,20690.0,20688.0,0.47725178]
[1674059750946,0.96665,20690.0,20689.0,0.04772518]
[1674059751194,0.96665,20690.0,20688.0,0.47725178]
[1674059751441,0.483348,20689.0,20688.0,5.009e-05]
[1674059751694,0.633348,20689.0,20688.0,5.009e-05]
[1674059752192,0.875038,20689.0,20679.0,0.26244265]
[1674059752440,0.875038,20689.0,20677.0,0.0473019]
[1674059752441,0.1391,20684.0,20677.0,0.0473019]
[1674059752692,0.1398,20681.0,20677.0,0.52450359]
[1674059752966,0.1398,20681.0,20677.0,0.52965205]
[1674059753216,0.1397,20679.0,20677.0,0.52965205]
[1674059753466,0.1397,20679.0,20674.0,0.00019]
[1674059753467,1.11721,20678.0,20674.0,0.00019]
[1674059753724,0.1398,20676.0,20674.0,0.00019]
[1674059753977,0.483675,20675.0,20674.0,0.00019]
[1674059754514,0.483675,20675.0,20670.0,0.01736126]
[1674059754814,0.15,20674.0,20670.0,0.49456295]
[1674059755017,1.590981,20673.0,20670.0,0.01736126]
[1674059755527,0.1391,20671.0,20670.0,0.01736126]
[1674059755776,1.2898531,20671.0,20670.0,0.01736126]
[1674059756307,1.2898531,20671.0,20668.0,0.01599091]
[1674059756563,0.1397,20669.0,20656.0,0.26392573]
[1674059756814,1.590517,20666.0,20657.0,0.47720169]
[1674059757071,1.590517,20666.0,20656.0,0.62739169]
[1674059757072,0.1388,20663.0,20656.0,0.62739169]
[1674059757351,0.968012,20661.0,20657.0,0.06424225]
[1674059757610,0.968012,20661.0,20656.0,0.47739169]
[1674059757611,0.95202109,20661.0,20656.0,0.47739169]
[1674059757872,0.46801509,20661.0,20658.0,0.47720169]
[1674059758133,0.483986,20662.0,20659.0,0.47720169]
[1674059758393,0.483986,20662.0,20660.0,0.47720169]
[1674059758695,0.483961,20663.0,20661.0,0.52492186]
[1674059758948,1.811681,20667.0,20662.0,0.47720169]
[1674059759239,1.811681,20667.0,20663.0,0.77720169]
[1674059759504,0.483881,20667.0,20655.0,1.16503082]
[1674059759758,0.33152604,20666.0,20660.0,0.15]
[1674059760068,0.33152604,20666.0,20656.0,0.47720169]
[1674059760069,0.1388,20661.0,20656.0,0.47720169]
[1674059760348,1.452114,20660.0,20655.0,0.01503082]
[1674059760601,1.452114,20660.0,20655.0,0.49223251]
[1674059760877,0.1398,20659.0,20655.0,0.01503082]
[1674059761141,0.968156,20658.0,20655.0,0.01503082]
[1674059761666,0.968156,20658.0,20656.0,0.47720169]
[1674059761938,0.15,20657.0,20655.0,0.49223251]
[1674059762235,0.96824,20656.0,20655.0,0.01503082]
[1674059765391,1.11824,20656.0,20655.0,0.01503082]
[1674059765653,1.11824,20656.0,20654.0,0.01467629]
[1674059765654,0.16467618,20655.0,20654.0,0.01086026]
[1674059765913,0.78862018,20655.0,20654.0,0.01086026]
[1674059766206,0.484144,20655.0,20654.0,0.01086026]
[1674059766502,0.484144,20655.0,20654.0,0.05354026]
[1674059766767,0.48412,20656.0,20654.0,0.01737374]
[1674059767065,0.968253,20656.0,20654.0,0.01086026]
[1674059767346,0.15,20655.0,20654.0,0.01086026]
[1674059767633,0.634144,20655.0,20654.0,0.01086026]
[1674059767900,0.634144,20655.0,20654.0,2.6e-07]
[1674059769268,0.876224,20655.0,20654.0,2.6e-07]
[1674059769789,4.522e-05,20653.0,20649.0,0.01856554]
[1674059770046,0.1391,20651.0,20649.0,0.01856554]
[1674059770360,0.968522,20650.0,20649.0,0.01856554]
[1674059770622,0.968522,20650.0,20649.0,0.01536554]
[1674059773814,0.484261,20650.0,20649.0,0.01536554]
[1674059774084,0.634234,20652.0,20649.0,0.53524723]
[1674059774085,0.96845,20652.0,20649.0,0.53524723]
[1674059774604,0.484234,20652.0,20650.0,0.47220169]
[1674059774896,0.484234,20652.0,20651.0,0.47720169]
[1674059775146,0.96844422,20653.0,20649.0,0.01536554]
[1674059775429,0.15,20652.0,20649.0,0.01536554]
[1674059775686,1.452714,20651.0,20649.0,0.01536554]
[1674059776472,0.15,20650.0,20649.0,0.01536554]
[1674059776750,0.15,20650.0,20649.0,5.54e-06]
[1674059777017,0.15,20650.0,20647.0,0.01940414]
[1674059777299,0.968568,20649.0,20647.0,0.49660583]
[1674059777573,1.452852,20649.0,20647.0,0.49660583]
[1674059778300,0.15,20648.0,20647.0,0.49660583]
[1674059778864,0.3252852,20648.0,20647.0,0.01940414]
[1674059779101,0.3252852,20648.0,20633.0,0.00019]
[1674059779102,0.47719586,20647.0,20633.0,0.00019]
[1674059779430,0.1392,20643.0,20635.0,0.47720169]
[1674059779635,0.1392,20643.0,20640.0,0.01889543]
[1674059779909,1.108064,20641.0,20640.0,0.01889543]
[1674059780431,0.1398,20640.0,20633.0,0.00019]
[1674059780711,0.1388,20635.0,20633.0,0.00019]
[1674059780976,0.484566,20637.0,20628.0,1.0]
[1674059781647,0.484566,20637.0,20626.0,1.17172304]
[1674059781648,0.484538,20639.0,20635.0,0.47720169]
[1674059781652,0.01889,20640.0,20636.0,0.47720169]
[1674059781845,0.734427,20643.0,20637.0,1.00803986]
[1674059782087,0.623582,20641.0,20636.0,0.47720169]
[1674059782527,0.1398,20639.0,20636.0,0.47720169]
[1674059782744,0.623682,20641.0,20637.0,0.47720169]
[1674059782978,0.634458,20642.0,20638.0,1.11577469]
[1674059782979,0.14986577,20642.0,20638.0,1.11577469]
[1674059783205,6e-05,20643.0,20639.0,0.92454416]
[1674059783445,6e-05,20643.0,20641.0,0.47720169]
[1674059784051,0.4,20648.0,20642.0,2.11065769]
[1674059784056,0.4,20648.0,20642.0,2.31065769]
[1674059784057,0.25,20648.0,20642.0,2.31065769]
[1674059784315,4.522e-05,20653.0,20647.0,0.47720169]
[1674059784586,4.522e-05,20653.0,20648.0,0.80186669]
[1674059784844,0.1398,20652.0,20643.0,0.42106577]
[1674059785101,0.1398,20652.0,20644.0,0.47720169]
[1674059785355,0.484255,20651.0,20645.0,0.56702844]
[1674059785631,0.634255,20651.0,20646.0,1.10991069]
[1674059786128,0.484255,20651.0,20647.0,0.80624369]
[1674059786130,0.484255,20651.0,20646.0,0.47720169]
[1674059786401,0.484255,20651.0,20639.0,0.11157747]
[1674059786402,0.2888,20650.0,20639.0,0.11157747]
[1674059786665,0.2888,20650.0,20640.0,0.47720169]
[1674059786666,0.484338,20647.0,20640.0,0.47720169]
[1674059786920,0.484338,20647.0,20641.0,0.47720169]
[1674059787205,0.63436,20646.0,20642.0,0.47720169]
[1674059787460,0.063436,20645.0,20636.0,0.8557]
[1674059787720,0.484442,20643.0,20637.0,0.47720169]
[1674059787996,0.484442,20643.0,20634.0,0.609373]
[1674059787997,0.484442,20643.0,20638.0,0.47720169]
[1674059788256,0.15,20642.0,20634.0,0.012073]
[1674059788543,0.484489,20641.0,20638.0,0.47720169]
[1674059788813,0.484489,20641.0,20620.0,1.7564957]
[1674059789070,0.51192624,20640.0,20630.0,0.47720169]
[1674059789352,1.35,20638.0,20631.0,0.47720169]
[1674059789640,0.15,20637.0,20631.0,0.47720169]
[1674059789934,0.15,20637.0,20627.0,0.21925774]
[1674059789935,0.484592,20636.0,20627.0,0.21925774]
[1674059790202,0.484592,20636.0,20628.0,0.47720169]
[1674059790203,1.3,20635.0,20628.0,0.47720169]
[1674059790459,1.784622,20635.0,20629.0,0.04964594]
[1674059790767,1.784622,20635.0,20627.0,0.49645943]
[1674059791028,0.15,20631.0,20627.0,0.01925774]
[1674059791291,0.634719,20631.0,20627.0,0.01925774]
[1674059791552,1.15,20630.0,20627.0,0.01925774]
[1674059791816,1.634662,20633.0,20628.0,0.47720169]
[1674059792114,0.15,20632.0,20629.0,0.52684763]
[1674059792369,0.15,20637.0,20630.0,0.47720169]
[1674059792876,0.634572,20637.0,20631.0,0.05268476]
[1674059793133,1.15,20633.0,20627.0,0.01925774]
[1674059793402,1.454102,20632.0,20627.0,0.01925774]
[1674059793664,1.15,20629.0,20627.0,0.01925774]
[1674059794190,0.15,20628.0,20627.0,0.01925774]
[1674059795774,1.15,20632.0,20627.0,0.06185582]
[1674059796052,0.15,20631.0,20628.0,0.37218157]
[1674059796361,0.15,20631.0,20629.0,0.3]
[1674059796635,0.15,20631.0,20627.0,0.31917582]
[1674059797416,0.15,20631.0,20627.0,0.49637751]
[1674059797679,0.15,20631.0,20628.0,0.3]
[1674059797955,0.15,20631.0,20629.0,0.03191758]
[1674059798194,0.15,20631.0,20627.0,0.01917582]
[1674059798195,1.15,20630.0,20627.0,0.01917582]
[1674059798455,1.63475,20630.0,20627.0,0.01917582]
[1674059798776,2.96895,20630.0,20627.0,0.01917582]
[1674059799467,0.15,20629.0,20627.0,0.01917582]
[1674059799738,0.15,20629.0,20627.0,5.82e-06]
[1674059799739,0.311895,20628.0,20627.0,5.82e-06]
[1674059800068,1.766226,20628.0,20627.0,5.82e-06]
[1674059800709,1.766226,20628.0,20622.0,0.02061379]
[1674059800710,5.418e-05,20626.0,20622.0,0.02061379]
[1674059800955,1.2897,20623.0,20622.0,0.02061379]
[1674059801180,1.634895,20623.0,20622.0,0.02061379]
[1674059801422,1.15,20623.0,20622.0,0.06329379]
[1674059801652,5.418e-05,20626.0,20622.0,0.06962317]
[1674059801653,1.63489018,20626.0,20622.0,0.06962317]
[1674059801874,5.418e-05,20626.0,20622.0,0.06962317]
[1674059802095,5.418e-05,20626.0,20623.0,0.47720169]
[1674059802317,5.418e-05,20626.0,20622.0,0.02694317]
[1674059802543,1.15005418,20626.0,20622.0,0.02061379]
[1674059802758,0.15,20625.0,20622.0,0.02061379]
[1674059802983,0.634851,20625.0,20622.0,0.02061379]
[1674059803206,1.15,20624.0,20622.0,0.02061379]
[1674059803432,0.48489418,20626.0,20622.0,0.02061379]